bitfinex/quotes_SOLUSD_20251024
["timestamp","ask_amount","ask_price","bid_price","bid_amount"]
[1761307503490,0.72,192.83,192.79,43.05603734]
[1761307503859,0.72,192.83,192.79,6.83603734]
[1761307504053,0.72,192.83,192.79,43.05603734]
[1761307504483,0.72,192.83,192.79,6.83603734]
[1761307504684,0.72,192.83,192.79,43.05603734]
[1761307505064,0.72,192.83,192.79,6.83603734]
[1761307505382,0.72,192.83,192.79,43.05603734]
[1761307506282,0.72,192.83,192.79,5.18699102]
[1761307506586,0.72,192.83,192.79,6.83603734]
[1761307506769,0.72,192.83,192.79,5.18699102]
[1761307506973,0.72,192.83,192.79,1.64904632]
[1761307507880,1.64904632,192.8,192.74,62.97034338]
[1761307508079,2.36904632,192.83,192.77,1.64904632]
[1761307508287,0.72,192.82,192.77,1.64904632]
[1761307508471,2.36904632,192.82,192.77,1.64904632]
[1761307508985,0.72,192.81,192.77,6.83631947]
[1761307509185,0.72,192.81,192.77,5.18727315]
[1761307510161,0.72,192.81,192.76,5.18779829]
[1761307510363,2.36904632,192.81,192.76,5.18779829]
[1761307511184,0.72,192.8,192.76,5.18779829]
[1761307512586,0.72,192.8,192.76,56.83684461]
[1761307512994,0.72,192.8,192.76,55.18779829]
[1761307513193,2.36904632,192.8,192.76,5.18779829]
[1761307513698,0.72,192.79,192.76,5.18779829]
[1761307515776,2.36904632,192.79,192.75,36.22]
[1761307515992,1.64904632,192.78,192.73,36.22]
[1761307516291,1.64904632,192.78,192.72,37.86904632]
[1761307516292,2.36904632,192.78,192.72,37.86904632]
[1761307516482,2.36904632,192.77,192.72,37.86904632]
[1761307516670,1.64904632,192.75,192.72,36.22]
[1761307516868,1.64904632,192.75,192.71,5.18914431]
[1761307517198,0.72,192.74,192.71,5.18914431]
[1761307517580,2.36904632,192.74,192.7,5.1893847]
[1761307517894,2.36904632,192.74,192.7,56.83843102]
[1761307517895,0.72,192.74,192.7,56.83843102]
[1761307518110,33.75647521,192.81,192.71,1.64904632]
[1761307518111,0.72,192.76,192.71,1.64904632]
[1761307518303,2.36904632,192.76,192.71,1.64904632]
[1761307518788,0.72,192.75,192.7,69.81196501]
[1761307519395,0.72,192.75,192.7,19.81196501]
[1761307519705,0.72,192.75,192.7,6.83843102]
[1761307520094,1.64904632,192.73,192.7,5.1893847]
[1761307520410,103.3,192.79,192.72,51.64904632]
[1761307520582,0.72,192.77,192.73,1.64904632]
[1761307521210,0.72,192.77,192.74,1.64904632]
[1761307521498,0.72,192.77,192.74,6.83732544]
[1761307522584,0.72,192.77,192.75,1.64904632]
[1761307522800,0.72,192.77,192.75,2.58271913]
[1761307523605,0.72,192.77,192.75,7.77066197]
[1761307524504,0.72,192.8,192.76,52.58271913]
[1761307524795,0.72,192.8,192.78,2.58271913]
[1761307525706,0.72,192.8,192.78,7.76981571]
[1761307526895,0.72,192.85,192.81,50.0]
[1761307527214,22.88,192.9,192.81,50.0]
[1761307527385,0.72,192.89,192.86,2.58271913]
[1761307528089,0.72,192.89,192.85,2.58271913]
[1761307528389,0.72,192.89,192.87,2.58271913]
[1761307528802,0.69,192.91,192.85,36.22]
[1761307528982,0.69,192.92,192.88,2.58271913]
[1761307530084,2.58271913,192.91,192.85,36.22]
[1761307530286,2.58271913,192.91,192.85,38.80271913]
[1761307530598,0.69,192.9,192.85,38.80271913]
[1761307530792,0.69,192.9,192.85,36.22]
[1761307530998,3.27271913,192.9,192.85,38.80271913]
[1761307531311,0.69,192.9,192.85,38.80271913]
[1761307531516,0.69,192.89,192.85,38.80271913]
[1761307532403,0.69,192.89,192.86,1.4]
[1761307536123,0.69,192.89,192.86,53.98271913]
[1761307536295,0.69,192.91,192.87,2.58271913]
[1761307537415,105.88271913,192.93,192.87,2.58271913]
[1761307537718,106.57271913,192.93,192.88,2.58271913]
[1761307538014,106.57271913,192.93,192.88,38.80271913]
[1761307538219,0.69,192.92,192.88,38.80271913]
[1761307538396,0.69,192.92,192.88,2.58271913]
[1761307538602,0.69,192.92,192.88,38.80271913]
[1761307539604,0.69,192.92,192.88,2.58271913]
[1761307539809,0.69,192.92,192.88,38.80271913]
[1761307540409,103.3,192.98,192.91,2.58271913]
[1761307540722,0.1,192.99,192.94,2.58271913]
[1761307540927,3.37271913,192.99,192.95,36.22]
[1761307541226,0.79,192.99,192.95,36.22]
[1761307541428,0.66,192.98,192.95,36.22]
[1761307542730,0.66,192.98,192.93,93.96576647]
[1761307542898,0.66,192.98,192.96,1.4]
[1761307543098,0.76,192.99,192.96,1.4]
[1761307543303,0.66,192.98,192.96,1.4]
[1761307545011,2.58271913,192.97,192.96,1.4]
[1761307545312,2.58271913,192.97,192.93,36.2]
[1761307545510,3.24271913,192.97,192.93,36.2]
[1761307545717,0.66,192.96,192.92,36.2]
[1761307546421,2.58271913,192.98,192.93,2.58271913]
[1761307546729,0.76,192.99,192.93,2.58271913]
[1761307546926,3.34271913,192.99,192.93,2.58271913]
[1761307547136,3.34271913,192.99,192.94,36.2]
[1761307547426,0.76,192.99,192.95,36.2]
[1761307547616,0.76,192.99,192.95,2.58271913]
[1761307547824,0.1,192.99,192.96,36.2]
[1761307548028,0.1,192.99,192.96,37.7]
[1761307548336,0.1,192.99,192.97,50.0]
[1761307548908,0.1,192.99,192.97,52.58271913]
[1761307549110,0.1,192.99,192.98,7.76460326]
[1761307549935,0.1,192.99,192.98,38.78271913]
[1761307550406,0.1,192.99,192.98,36.2]
[1761307551725,0.1,192.99,192.98,38.78271913]
[1761307552416,0.1,192.99,192.98,2.58271913]
[1761307552619,0.1,192.99,192.98,43.96460326]
[1761307553420,0.1,192.99,192.98,43.94460326]
[1761307553621,0.1,192.99,192.98,7.76460326]
[1761307553819,0.1,192.99,192.98,43.94460326]
[1761307556034,0.1,192.99,192.98,7.76460326]
[1761307556341,0.1,192.99,192.98,43.94460326]
[1761307556929,0.1,192.99,192.98,7.76460326]
[1761307557124,0.1,192.99,192.98,43.94460326]
[1761307557631,0.1,192.99,192.98,41.36188413]
[1761307557825,0.1,192.99,192.98,7.76460326]
[1761307558038,0.1,192.99,192.98,43.94460326]
[1761307558921,0.1,192.99,192.98,44.46279167]
[1761307559124,0.1,192.99,192.98,47.0455108]
[1761307559323,0.1,192.99,192.98,49.62822993]
[1761307559528,0.1,192.99,192.98,47.0455108]
[1761307560624,0.1,192.99,192.98,57.92198601]
[1761307560946,0.1,192.99,192.98,55.33926688]
[1761307561149,0.1,192.99,192.98,21.74198601]
[1761307561323,0.1,192.99,192.98,57.92198601]
[1761307561524,0.1,192.99,192.98,46.52732239]
[1761307561734,0.1,192.99,192.98,43.94460326]
[1761307562041,0.1,192.99,192.98,36.18]
[1761307562239,0.1,192.99,192.98,38.76271913]
[1761307562619,0.1,192.99,192.98,7.76460326]
[1761307563240,0.1,192.99,192.98,43.94460326]
[1761307563832,0.1,192.99,192.98,7.76460326]
[1761307564029,0.1,192.99,192.98,43.94460326]
[1761307564744,0.76,192.99,192.98,36.18]
[1761307565136,0.76,192.99,192.96,43.94507616]
[1761307565350,0.76,192.99,192.96,7.76507616]
[1761307565534,0.76,192.99,192.96,43.94507616]
[1761307566551,0.76,192.99,192.97,0.8]
[1761307566759,0.76,192.99,192.96,43.94507616]
[1761307567735,0.76,192.99,192.96,7.76507616]
[1761307568342,0.76,192.99,192.97,2.58271913]
[1761307568842,0.76,192.99,192.97,38.76271913]
[1761307569228,0.76,192.99,192.97,2.58271913]
[1761307569429,0.76,192.99,192.97,38.76271913]
[1761307570451,0.1,192.99,192.97,43.94477707]
[1761307570647,0.1,192.99,192.98,2.58271913]
[1761307570843,0.76,192.99,192.98,2.58271913]
[1761307571332,0.1,192.99,192.98,57.76460326]
[1761307571560,0.1,192.99,192.98,105.18188413]
[1761307571732,0.1,192.99,192.98,107.76460326]
[1761307572128,0.1,192.99,192.98,105.18188413]
[1761307572351,0.1,192.99,192.98,52.58271913]
[1761307572537,0.1,192.99,192.98,57.76460326]
[1761307572734,0.1,192.99,192.98,55.18188413]
[1761307572936,0.1,192.99,192.98,52.58271913]
[1761307574439,3.37271913,192.99,192.92,100.0]
[1761307574637,2.58271913,192.97,192.9,102.58271913]
[1761307574852,2.58271913,192.97,192.91,2.58271913]
[1761307575165,2.58271913,192.97,192.93,2.58271913]
[1761307575166,0.69,192.97,192.93,2.58271913]
[1761307575336,0.69,192.96,192.93,2.58271913]
[1761307575835,0.69,192.96,192.92,38.76271913]
[1761307576233,0.69,192.96,192.92,36.18]
[1761307577453,0.69,192.96,192.92,38.76271913]
[1761307578435,0.69,192.96,192.92,36.18]
[1761307578635,0.69,192.96,192.92,38.76271913]
[1761307578844,0.69,192.96,192.92,36.18]
[1761307579045,3.27271913,192.96,192.92,36.18]
[1761307579452,0.69,192.95,192.92,36.18]
[1761307580063,0.69,192.95,192.89,5.18423035]
[1761307580064,2.58271913,192.93,192.84,50.0]
[1761307580268,2.58271913,192.9,192.84,88.76271913]
[1761307580639,0.69,192.89,192.84,2.58271913]
[1761307580965,0.69,192.89,192.86,2.58271913]
[1761307581148,2.58271913,192.95,192.87,50.0]
[1761307581347,0.69,192.91,192.88,36.18]
[1761307582164,0.69,192.91,192.87,52.58271913]
[1761307582458,0.69,192.91,192.88,38.76271913]
[1761307582868,0.69,192.91,192.88,36.18]
[1761307583060,0.69,192.91,192.87,52.58271913]
[1761307583246,0.69,192.91,192.88,38.76271913]
[1761307584658,0.69,192.91,192.88,36.18]
[1761307584864,0.69,192.91,192.88,37.83066617]
[1761307585053,0.69,192.91,192.89,1.65066617]
[1761307586143,0.69,192.91,192.88,91.36455279]
[1761307586343,0.69,192.91,192.89,1.65066617]
[1761307589171,0.69,192.91,192.88,87.83066617]
[1761307589966,0.69,192.91,192.89,1.65066617]
[1761307590455,0.69,192.91,192.88,36.18]
[1761307590656,0.69,192.91,192.88,37.83066617]
[1761307593379,0.69,192.91,192.89,1.65066617]
[1761307595270,0.69,192.91,192.88,36.18]
[1761307595571,0.69,192.91,192.88,37.83066617]
[1761307595974,0.69,192.91,192.89,1.65066617]
[1761307597565,0.69,192.91,192.88,37.83066617]
[1761307604075,0.69,192.91,192.88,36.18]
[1761307604885,0.69,192.91,192.88,37.83066617]
[1761307605293,0.69,192.91,192.88,93.01506668]
[1761307605462,0.71,192.93,192.9,51.65066617]
[1761307605660,0.71,192.93,192.92,1.65066617]
[1761307606178,0.71,192.93,192.91,36.18]
[1761307606380,0.71,192.93,192.92,1.65066617]
[1761307607082,0.71,192.93,192.91,36.18]
[1761307607261,0.71,192.93,192.91,37.83066617]
[1761307607861,0.71,192.93,192.91,36.18]
[1761307609070,0.71,192.93,192.89,36.18]
[1761307609965,1.65066617,192.91,192.89,36.18]
[1761307610358,0.71,192.9,192.89,36.18]
[1761307611462,0.71,192.9,192.86,6.83569748]
[1761307611665,0.71,192.9,192.87,36.18]
[1761307612183,2.36066617,192.9,192.87,36.18]
[1761307612383,1.65066617,192.89,192.81,50.0]
[1761307612588,0.69,192.88,192.82,87.83066617]
[1761307612882,1.65066617,192.87,192.82,37.83066617]
[1761307613299,0.69,192.86,192.82,37.83066617]
[1761307613459,0.69,192.86,192.82,87.83066617]
[1761307613773,0.69,192.86,192.83,1.65066617]
[1761307614165,0.69,192.86,192.84,37.83066617]
[1761307614398,0.69,192.86,192.84,36.18]
[1761307615299,0.69,192.86,192.82,36.18]
[1761307615966,5.8751376,192.86,192.82,36.18]
[1761307616367,0.69,192.85,192.82,36.18]
[1761307617201,0.69,192.85,192.82,37.83066617]
[1761307617367,5.87539249,192.85,192.82,37.83066617]
[1761307617567,5.87539249,192.85,192.8,37.83066617]
[1761307617866,0.69,192.84,192.8,37.83066617]
[1761307620881,0.69,192.84,192.81,1.65066617]
[1761307626111,0.69,192.84,192.8,37.83066617]
[1761307628388,0.69,192.84,192.8,36.18]
[1761307628589,0.69,192.84,192.8,37.83066617]
[1761307628789,0.69,192.84,192.8,36.18]
[1761307629020,0.69,192.84,192.81,1.65066617]
[1761307635911,0.69,192.84,192.8,36.18]
[1761307636118,0.69,192.84,192.81,1.65066617]
[1761307636586,0.69,192.84,192.82,1.65066617]
[1761307637015,0.69,192.84,192.81,1.65066617]
[1761307638413,0.69,192.84,192.83,1.65066617]
[1761307638615,0.71,192.84,192.83,1.65066617]
[1761307639209,0.71,192.84,192.8,41.36646707]
[1761307639422,0.71,192.84,192.83,1.65066617]
[1761307640305,0.71,192.84,192.8,41.36646707]
[1761307640510,0.71,192.84,192.83,1.65066617]
[1761307643618,0.71,192.84,192.82,1.65066617]
[1761307644522,0.71,192.84,192.8,37.83066617]
[1761307646734,0.71,192.84,192.81,2.58103204]
[1761307647726,0.71,192.86,192.81,2.58103204]
[1761307647930,0.71,192.86,192.82,2.58103204]
[1761307651339,0.71,192.86,192.81,7.7674438]
[1761307653323,5.89511166,192.86,192.81,2.58103204]
[1761307654038,0.71,192.85,192.81,2.58103204]
[1761307661956,0.71,192.85,192.81,7.76742937]
[1761307662145,103.3,192.87,192.83,2.58103204]
[1761307662330,0.7,192.86,192.83,2.58103204]
[1761307662532,0.7,192.86,192.82,2.58103204]
[1761307665852,0.7,192.86,192.8,91.36665681]
[1761307666059,0.7,192.86,192.81,2.58103204]
[1761307667455,103.3,192.87,192.85,2.58103204]
[1761307668072,104.0,192.87,192.85,2.58103204]
[1761307668570,104.0,192.87,192.84,2.58103204]
[1761307668962,103.3,192.87,192.84,2.58103204]
[1761307669164,0.7,192.86,192.84,2.58103204]
[1761307669868,0.7,192.86,192.83,38.74103204]
[1761307670171,0.7,192.86,192.83,36.16]
[1761307670474,0.7,192.86,192.83,38.74103204]
[1761307670855,0.7,192.86,192.83,36.16]
[1761307671074,0.7,192.86,192.83,38.74103204]
[1761307673173,0.7,192.89,192.85,2.58103204]
[1761307673475,3.88416908,192.88,192.87,2.58103204]
[1761307676075,0.7,192.9,192.87,2.58103204]
[1761307677564,0.7,192.9,192.88,2.58103204]
[1761307678161,103.3,192.92,192.88,2.58103204]
[1761307678481,103.3,192.92,192.9,2.58103204]
[1761307678667,104.01,192.92,192.9,2.58103204]
[1761307679381,0.71,192.93,192.91,2.58103204]
[1761307680675,0.71,192.93,192.9,52.58103204]
[1761307681673,0.71,192.93,192.9,2.58103204]
[1761307682080,0.71,192.93,192.9,52.58103204]
[1761307682379,0.71,192.93,192.9,2.58103204]
[1761307683184,0.71,192.93,192.89,43.90531542]
[1761307686182,0.71,192.93,192.89,36.14]
[1761307686486,6.44933313,192.92,192.86,36.14]
[1761307686694,2.58103204,192.92,192.86,38.72103204]
[1761307686986,0.71,192.91,192.86,38.72103204]
[1761307688083,0.71,192.91,192.86,36.14]
[1761307688380,0.71,192.91,192.86,38.72103204]
[1761307688879,2.58103204,192.9,192.83,2.58103204]
[1761307689082,2.58103204,192.9,192.83,38.72103204]
[1761307689083,6.44948129,192.9,192.83,38.72103204]
[1761307689291,0.71,192.89,192.83,36.14]
[1761307689466,0.71,192.89,192.83,38.72103204]
[1761307689783,0.71,192.89,192.8,5.18648051]
[1761307689988,11.6344911,192.88,192.81,2.58103204]
[1761307690193,7.76560275,192.88,192.82,2.58103204]
[1761307690388,0.71,192.87,192.82,2.58103204]
[1761307691679,5.8949364,192.87,192.82,2.58103204]
[1761307692183,0.69,192.86,192.82,2.58103204]
[1761307693292,0.69,192.86,192.83,2.58103204]
[1761307694968,0.69,192.86,192.82,2.58103204]
[1761307695178,0.69,192.86,192.8,41.32670273]
[1761307695378,0.69,192.86,192.81,2.58103204]
[1761307696178,0.69,192.86,192.8,41.32670273]
[1761307696380,0.69,192.86,192.81,2.58103204]
[1761307696808,0.69,192.86,192.8,41.32670273]
[1761307696984,0.69,192.86,192.81,2.58103204]
[1761307698973,0.69,192.86,192.82,2.58103204]
[1761307700005,0.69,192.86,192.8,41.32670273]
[1761307700184,0.69,192.86,192.82,2.58103204]
[1761307701201,0.69,192.86,192.81,2.58103204]
[1761307701510,0.69,192.86,192.8,41.32670273]
[1761307701690,0.69,192.86,192.81,2.58103204]
[1761307706693,0.69,192.86,192.81,1.65176538]
[1761307709584,1.65176538,192.85,192.8,36.14]
[1761307709887,0.69,192.84,192.8,36.14]
[1761307714627,0.69,192.84,192.8,37.79176538]
[1761307717204,0.69,192.84,192.81,1.65176538]
[1761307719935,0.69,192.84,192.8,37.79176538]
[1761307725114,5.87565789,192.84,192.8,37.79176538]
[1761307725528,0.66,192.83,192.8,37.79176538]
[1761307726630,0.66,192.83,192.8,36.14]
[1761307726846,0.66,192.83,192.8,37.79176538]
[1761307727219,0.66,192.83,192.8,36.14]
[1761307727614,0.66,192.83,192.77,1.65176538]
[1761307727615,5.84604842,192.83,192.77,1.65176538]
[1761307727931,1.65176538,192.82,192.77,36.12]
[1761307728233,2.31176538,192.82,192.77,36.12]
[1761307728440,0.66,192.81,192.77,36.12]
[1761307729521,7.49822154,192.81,192.76,1.65176538]
[1761307729720,7.49822154,192.81,192.76,37.77176538]
[1761307729924,0.66,192.8,192.76,37.77176538]
[1761307730525,0.66,192.8,192.76,36.12]
[1761307733842,5.8467763,192.8,192.76,36.12]
[1761307734350,0.66,192.79,192.76,36.12]
[1761307735945,0.66,192.79,192.74,1.65176538]
[1761307736128,0.66,192.79,192.74,37.77176538]
[1761307736436,0.66,192.79,192.74,42.96000961]
[1761307737143,7.49887866,192.79,192.74,37.77176538]
[1761307737613,0.7,192.78,192.74,37.77176538]
[1761307739837,0.7,192.78,192.74,36.12]
[1761307741239,5.8873179,192.78,192.73,6.8402715]
[1761307741440,7.53908328,192.78,192.73,5.18850612]
[1761307741654,0.7,192.77,192.73,5.18850612]
[1761307743438,0.7,192.77,192.73,6.8402715]
[1761307743637,0.7,192.8,192.76,51.65176538]
[1761307743956,0.7,192.8,192.77,1.65176538]
[1761307745366,0.7,192.8,192.76,1.65176538]
[1761307746560,0.7,192.8,192.76,6.83954657]
[1761307746759,0.7,192.8,192.77,1.65176538]
[1761307750954,0.7,192.8,192.76,55.18778119]
[1761307751164,0.7,192.84,192.8,50.0]
[1761307751360,0.7,192.84,192.81,1.65176538]
[1761307751959,0.7,192.84,192.8,50.0]
[1761307752164,0.7,192.84,192.81,1.65176538]
[1761307754141,0.7,192.84,192.8,1.65176538]
[1761307755268,0.7,192.84,192.8,6.83846675]
[1761307756466,104.01,192.86,192.82,1.65176538]
[1761307756657,0.71,192.85,192.83,1.65176538]
[1761307757052,0.71,192.85,192.82,6.83788432]
[1761307757262,0.71,192.85,192.83,1.65176538]
[1761307760151,5.1847912,192.88,192.82,42.93788432]
[1761307760351,0.71,192.85,192.82,42.93788432]
[1761307762160,0.71,192.85,192.82,36.1]
[1761307769654,0.71,192.85,192.82,38.68083104]
[1761307772883,0.71,192.85,192.82,43.86698337]
[1761307775685,2.58083104,192.83,192.77,2.58083104]
[1761307775878,2.58083104,192.82,192.77,36.08]
[1761307776069,2.58083104,192.81,192.77,36.08]
[1761307776570,0.71,192.8,192.77,36.08]
[1761307776776,0.71,192.8,192.77,41.26750318]
[1761307777158,0.71,192.8,192.75,15.56864474]
[1761307777159,2.58083104,192.78,192.75,15.56864474]
[1761307777360,2.58083104,192.77,192.73,36.08]
[1761307777877,0.71,192.76,192.73,36.08]
[1761307778272,3.29083104,192.76,192.73,36.08]
[1761307778780,0.71,192.75,192.73,36.08]
[1761307785486,0.71,192.75,192.73,43.84941994]
[1761307785672,0.72,192.78,192.74,2.58083104]
[1761307785873,0.72,192.78,192.76,2.58083104]
[1761307786071,0.72,192.78,192.77,2.58083104]
[1761307786387,4.58083103,192.9,192.77,2.58083104]
[1761307786388,5.18457071,192.88,192.8,50.0]
[1761307786592,0.72,192.86,192.84,2.58083104]
[1761307787294,0.72,192.86,192.85,2.58083104]
[1761307787594,0.72,192.86,192.84,2.58083104]
[1761307788473,0.72,192.86,192.83,2.58083104]
[1761307788675,0.72,192.86,192.84,2.58083104]
[1761307791075,0.72,192.86,192.83,2.58083104]
[1761307791486,0.72,192.86,192.82,2.58083104]
[1761307792976,2.58083104,192.84,192.8,65.5637986]
[1761307793180,2.58083104,192.81,192.72,2.58083104]
[1761307793380,2.58083104,192.79,192.72,2.58083104]
[1761307793576,2.58083104,192.79,192.73,36.08]
[1761307793777,0.72,192.78,192.73,36.08]
[1761307793977,3.30083104,192.78,192.73,36.08]
[1761307794289,3.30083104,192.78,192.73,41.26849504]
[1761307794495,0.72,192.77,192.73,41.26849504]
[1761307799605,0.72,192.77,192.73,91.26849504]
[1761307799780,0.72,192.77,192.73,86.08]
[1761307800097,3.30083104,192.77,192.73,36.08]
[1761307800283,3.30083104,192.77,192.7,41.03189999]
[1761307800284,2.58083104,192.74,192.7,15.57106895]
[1761307800484,2.58083104,192.73,192.66,102.58083104]
[1761307800676,2.58083104,192.74,192.67,2.58083104]
[1761307801085,3.25083104,192.73,192.67,36.08]
[1761307801386,8.43967323,192.73,192.67,36.08]
[1761307801696,3.25083104,192.72,192.67,36.08]
[1761307802193,0.67,192.71,192.67,36.08]
[1761307802596,0.67,192.75,192.69,52.58083104]
[1761307802783,0.67,192.75,192.7,36.08]
[1761307802972,0.67,192.75,192.7,38.66083104]
[1761307803170,5.18784016,192.76,192.71,2.58083104]
[1761307803597,0.67,192.75,192.71,2.58083104]
[1761307803794,0.67,192.75,192.7,41.26925331]
[1761307803993,0.67,192.75,192.71,2.58083104]
[1761307806202,2.58083104,192.72,192.64,2.58083104]
[1761307806501,2.58083104,192.7,192.63,138.66083104]
[1761307806702,2.58083104,192.71,192.65,2.58083104]
[1761307807207,2.58083104,192.71,192.63,158.96]
[1761307807208,5.85943404,192.7,192.63,122.88]
[1761307807385,2.58083104,192.64,192.61,0.2]
[1761307807706,10.87647521,192.69,192.61,0.2]
[1761307807707,2.58083104,192.66,192.61,0.2]
[1761307807910,2.70861494,192.65,192.62,36.08]
[1761307808203,0.67,192.64,192.62,36.08]
[1761307809385,3.37861494,192.66,192.62,36.08]
[1761307809594,0.67,192.66,192.62,36.08]
[1761307809990,0.67,192.68,192.62,91.27146504]
[1761307810191,0.67,192.68,192.63,52.58083104]
[1761307811405,3.24083104,192.7,192.64,55.1910299]
[1761307811611,0.66,192.7,192.65,88.74083104]
[1761307811790,2.58083104,192.72,192.65,88.74083104]
[1761307811998,0.66,192.71,192.65,88.74083104]
[1761307812307,0.66,192.71,192.65,89.25990708]
[1761307812479,0.66,192.73,192.69,2.58083104]
[1761307812808,0.66,192.73,192.7,38.76083104]
[1761307813391,5.84870579,192.73,192.7,38.76083104]
[1761307813804,0.66,192.72,192.7,38.76083104]
[1761307814906,5.84833661,192.74,192.7,38.76083104]
[1761307815108,5.84833661,192.74,192.71,2.58083104]
[1761307815284,0.66,192.73,192.71,2.58083104]
[1761307816103,0.66,192.73,192.7,36.18]
[1761307816307,0.66,192.73,192.71,2.58083104]
[1761307817111,0.66,192.73,192.7,36.18]
[1761307817309,0.66,192.77,192.72,2.58083104]
[1761307817613,20.75859917,192.8,192.74,2.58083104]
[1761307817810,0.66,192.79,192.76,2.58083104]
[1761307818010,0.66,192.79,192.77,36.16]
[1761307819489,0.66,192.79,192.75,2.58083104]
[1761307819691,0.66,192.79,192.76,36.16]
[1761307820399,5.84710789,192.79,192.77,36.16]
[1761307821702,0.66,192.78,192.77,36.16]
[1761307822597,5.84726008,192.78,192.77,36.16]
[1761307822799,8.42809112,192.78,192.77,36.16]
[1761307823015,8.42809112,192.78,192.76,36.16]
[1761307823311,3.24083104,192.77,192.76,36.16]
[1761307824097,0.66,192.77,192.76,36.16]
[1761307824433,0.66,192.77,192.75,36.16]
[1761307831727,0.66,192.77,192.73,1.65313045]
[1761307831914,0.66,192.77,192.74,36.14]
[1761307832124,0.66,192.77,192.73,1.65313045]
[1761307832633,0.66,192.77,192.74,36.12]
[1761307833437,0.66,192.77,192.73,1.65313045]
[1761307833738,0.66,192.77,192.74,36.12]
[1761307833910,0.66,192.77,192.72,55.18878308]
[1761307834112,0.66,192.77,192.73,37.77313045]
[1761307834311,0.66,192.77,192.74,36.12]
[1761307834611,0.66,192.77,192.73,1.65313045]
[1761307834823,0.66,192.77,192.74,36.12]
[1761307838840,0.66,192.77,192.7,50.0]
[1761307838841,1.65313045,192.76,192.7,50.0]
[1761307839017,1.65313045,192.74,192.69,1.65313045]
[1761307839217,1.65313045,192.74,192.71,36.1]
[1761307839423,0.66,192.73,192.71,36.1]
[1761307841742,0.66,192.78,192.72,101.65313045]
[1761307841919,0.66,192.78,192.74,1.65313045]
[1761307842245,0.66,192.78,192.75,37.75313045]
[1761307842436,0.66,192.78,192.76,1.65313045]
[1761307842744,5.18705804,192.79,192.76,1.65313045]
[1761307843039,5.84705804,192.79,192.76,1.65313045]
[1761307843626,0.66,192.78,192.76,1.65313045]
[1761307843828,5.84672199,192.8,192.76,1.65313045]
[1761307844039,0.66,192.79,192.76,1.65313045]
[1761307844848,5.84707618,192.79,192.76,1.65313045]
[1761307845351,5.84707618,192.79,192.75,37.75313045]
[1761307846046,5.18672199,192.8,192.75,37.75313045]
[1761307846232,0.66,192.79,192.76,1.65313045]
[1761307846740,0.66,192.79,192.77,36.1]
[1761307847118,12.9636283,192.85,192.77,36.1]
[1761307847340,103.3,192.89,192.77,36.1]
[1761307847341,11.36827036,192.84,192.77,36.1]
[1761307847547,5.52262423,192.83,192.78,1.65313045]
[1761307847746,2.31313045,192.83,192.78,1.65313045]
[1761307847924,0.66,192.82,192.78,1.65313045]
[1761307848347,5.84629892,192.82,192.78,1.65313045]
[1761307848844,1.65313045,192.8,192.77,36.1]
[1761307849324,1.65313045,192.81,192.77,36.1]
[1761307849650,0.66,192.8,192.77,37.75313045]
[1761307850538,5.84629892,192.82,192.78,1.65313045]
[1761307852439,0.66,192.81,192.78,1.65313045]
[1761307853142,0.66,192.81,192.77,42.94065002]
[1761307853761,7.49969306,192.81,192.77,36.1]
[1761307854242,7.49969306,192.81,192.77,37.75313045]